bitfinex-derivatives/quotes_ETHF0:USTF0_20251021
["timestamp","ask_amount","ask_price","bid_price","bid_amount"]
[1761081544834,0.8334,3949.7,3949.6,1.23038]
[1761081545534,0.8334,3949.7,3949.6,0.7748]
[1761081545931,1.0664,3949.7,3949.6,0.7748]
[1761081547232,1.52196,3949.7,3949.6,0.7748]
[1761081548130,1.28896,3949.7,3949.6,0.7748]
[1761081548333,3.2078,3950.6,3950.5,0.9039]
[1761081548633,0.00220722,3951.0,3950.9,0.7748]
[1761081548634,0.78620722,3951.0,3950.9,0.7748]
[1761081548830,0.00220722,3951.0,3950.9,0.90391422]
[1761081552739,0.5508,3951.9,3951.8,0.7748]
[1761081552930,0.784,3951.9,3951.8,0.7748]
[1761081553129,0.233,3951.9,3951.8,0.7748]
[1761081553829,0.23567272,3951.9,3951.8,0.77764971]
[1761081554335,0.78667272,3951.9,3951.8,0.77764971]
[1761081554636,0.78667272,3951.9,3951.8,0.23164971]
[1761081555243,0.78667272,3951.9,3951.8,0.00284971]
[1761081558535,5.78667272,3951.9,3951.8,0.00284971]
[1761081558934,0.32047272,3951.9,3951.8,0.23164971]
[1761081559129,0.75847272,3951.9,3951.8,0.55424971]
[1761081559329,0.75847272,3951.9,3951.8,0.23164971]
[1761081559529,5.75847272,3951.9,3951.8,0.00284971]
[1761081560332,0.75847272,3951.9,3951.8,0.76264971]
[1761081561141,0.56447272,3951.9,3951.8,0.76264971]
[1761081561440,0.78677272,3951.9,3951.8,0.76264971]
[1761081563836,0.78677272,3951.9,3951.8,0.44004971]
[1761081564038,0.78677272,3951.9,3951.8,0.00284971]
[1761081564039,4.44989272,3951.9,3951.8,0.00284971]
[1761081565036,4.44989272,3951.9,3951.8,0.22954971]
[1761081568548,4.44989272,3951.9,3951.8,0.79844971]
[1761081571046,1.24209272,3951.9,3951.8,0.79844971]
[1761081575245,1.24209272,3951.9,3947.8,7.14052371]
[1761081575246,0.7997,3950.8,3950.7,0.2267]
[1761081575447,0.7997,3950.8,3950.7,0.7956]
[1761081576241,0.7997,3950.8,3950.7,0.79816016]
[1761081580148,0.5774,3950.8,3950.7,0.79816016]
[1761081581057,0.231,3951.0,3950.9,0.3456]
[1761081581252,0.7997,3951.3,3951.2,0.7956]
[1761081582344,3.6611,3951.8,3951.7,0.7956]
[1761081582544,4.255135,3951.8,3951.7,0.7956]
[1761081582758,4.710465,3951.8,3951.7,0.7956]
[1761081582952,5.056865,3951.8,3951.7,0.7956]
[1761081584345,0.00267272,3951.9,3951.7,0.7956]
[1761081584545,0.58007272,3951.9,3951.8,0.7956]
[1761081584750,0.58007272,3951.9,3951.7,3.2078]
[1761081584751,0.3464,3951.8,3951.7,0.3456]
[1761081585053,0.7997,3951.8,3951.7,0.5723]
[1761081585258,0.7997,3951.8,3951.7,0.7956]
[1761081587660,0.00267272,3951.9,3951.8,0.7956]
[1761081591664,0.00267272,3951.9,3951.8,5.7956]
[1761081591960,0.7604,3952.8,3952.7,0.7823]
[1761081592155,0.7604,3952.8,3952.7,9.8583]
[1761081592756,0.76329105,3952.8,3952.7,9.8583]
[1761081594057,0.76329105,3952.8,3952.7,9.076]
[1761081594355,5.76329105,3952.8,3952.7,9.076]
[1761081595962,6.21851105,3952.8,3952.7,9.076]
[1761081598465,6.21851105,3952.8,3951.7,3.2078]
[1761081598466,1.21576,3951.6,3951.5,1.35632325]
[1761081598664,0.5371,3951.5,3951.4,0.7823]
[1761081598863,0.5371,3951.5,3951.4,9.8533]
[1761081599065,0.7604,3951.5,3951.4,9.8533]
[1761081600062,0.99245,3951.7,3951.6,0.4327]
[1761081600259,0.99245,3951.7,3951.6,0.7823]
[1761081601064,1.21575,3951.7,3951.6,0.7823]
[1761081601259,0.7604,3951.7,3951.6,0.7823]
[1761081602065,1.26773,3951.5,3950.8,0.2219]
[1761081602268,1.21585,3950.8,3950.7,0.00256016]
[1761081602472,0.7604,3950.1,3950.0,3.2078]
[1761081602872,0.5371,3950.8,3950.7,0.7823]
[1761081603166,0.7604,3951.2,3951.1,0.4327]
[1761081603364,0.7604,3951.2,3951.1,0.7823]
[1761081603569,0.7604,3951.2,3951.1,0.78427919]
[1761081604069,0.7604,3951.2,3951.1,0.00197919]
[1761081604866,0.7604,3951.2,3951.1,0.57347919]
[1761081605172,0.7604,3951.2,3951.1,0.78427919]
[1761081606274,0.7604,3951.2,3951.1,0.43467919]
[1761081606676,5.7604,3951.2,3951.1,0.00197919]
[1761081606866,0.7604,3951.2,3951.1,0.00197919]
[1761081607674,5.7604,3951.2,3951.1,0.00197919]
[1761081608769,0.7604,3949.9,3949.8,1.57890875]
[1761081609079,0.7604,3949.9,3949.8,0.7823]
[1761081609575,0.88981,3950.3,3950.2,0.7823]
[1761081609765,0.89205604,3950.3,3950.2,0.78423773]
[1761081609969,1.21815604,3950.3,3950.2,0.78423773]
[1761081610974,1.21815604,3950.3,3950.2,9.86023773]
[1761081611373,1.21815604,3950.3,3950.2,0.00193773]
[1761081611577,0.3261,3949.2,3948.9,1.50519624]
[1761081611877,1.21608,3948.8,3948.7,0.7823]
[1761081612472,1.21608,3948.8,3948.7,0.7847569]
[1761081614079,1.21608,3948.8,3948.7,0.0024569]
[1761081615675,4.42388,3948.8,3948.7,0.0024569]
[1761081618469,3.9682,3948.8,3948.7,1.2404469]
[1761081618778,0.4343,3949.2,3948.7,3.6429569]
[1761081619079,0.5385,3949.5,3949.4,0.7729]
[1761081619378,0.9018,3949.5,3949.4,9.8749]
[1761081619580,0.7666,3949.5,3949.4,9.8749]
[1761081620577,1.3574,3949.5,3949.4,9.3195]
[1761081620880,1.3574,3949.5,3949.4,9.102]
[1761081621776,1.3574,3949.5,3949.4,9.3241]
[1761081622583,1.3574,3949.5,3949.4,9.102]
[1761081627483,1.3574,3949.5,3949.4,9.3241]
[1761081627783,1.3574,3949.5,3949.4,9.102]
[1761081628285,1.3574,3949.5,3949.4,9.3241]
[1761081629472,1.3574,3949.5,3949.4,9.6464]
[1761081629672,1.2222,3949.5,3949.4,9.8627]
[1761081631480,1.3492,3949.5,3949.4,9.102]
[1761081631786,1.3492,3949.5,3949.4,9.3241]
[1761081632171,1.3492,3949.5,3949.4,9.102]
[1761081637284,1.93814125,3949.5,3949.4,9.102]
[1761081638078,1.93814125,3949.5,3949.4,9.3241]
[1761081639789,1.93814125,3949.5,3949.4,9.102]
[1761081640291,1.93814125,3949.5,3949.4,9.3241]
[1761081640989,1.93814125,3949.5,3949.4,9.8627]
[1761081642288,1.93814125,3949.5,3949.4,9.3241]
[1761081642494,1.93814125,3949.5,3949.4,9.6464]
[1761081643489,5.14594125,3949.5,3949.4,9.6464]
[1761081646095,5.14594125,3949.5,3949.4,9.8627]
[1761081649893,5.14594125,3949.5,3940.5,15.56448502]
[1761081650087,5.14594125,3949.5,3944.6,3.86820647]
[1761081650088,3.3348,3946.5,3944.6,3.86820647]
[1761081650289,0.45635,3943.0,3942.8,0.02536269]
[1761081650490,0.45645,3942.1,3941.9,3.0143]
[1761081650704,0.45645,3942.1,3941.9,6.16842747]
[1761081650997,4.57729994,3942.0,3941.9,0.00186667]
[1761081651192,0.45659,3941.0,3940.6,18.36324954]
[1761081651400,3.2078,3940.7,3940.6,18.36324954]
[1761081651593,9.04483796,3940.7,3940.6,27.83524954]
[1761081651897,9.04483796,3940.7,3940.6,25.68221615]
[1761081652094,9.04483796,3940.7,3940.6,2.2274]
[1761081652392,4.5172078,3940.7,3940.6,5.38479867]
[1761081652796,1.8648078,3940.7,3940.6,5.38479867]
[1761081652992,1.8648078,3940.7,3940.6,10.38479867]
[1761081653197,1.84668429,3940.7,3940.6,7.2306712]
[1761081653402,3.2078,3941.1,3940.9,2.2274]
[1761081653592,3.2078,3941.1,3941.0,11.7044]
[1761081657702,3.2078,3941.1,3941.0,2.2274]
[1761081657902,3.2078,3941.1,3941.0,8.5764]
[1761081658097,5.43475061,3941.9,3941.4,0.9069]
[1761081658300,5.43475061,3941.9,3941.6,2.2274]
[1761081658301,2.22695061,3941.8,3941.6,2.2274]
[1761081658504,3.2078,3941.9,3941.6,2.2274]
[1761081659200,0.00184964,3942.1,3941.8,2.2274]
[1761081659504,0.00184964,3942.1,3942.0,2.2274]
[1761081659803,0.00184964,3942.1,3936.1,5.08442297]
[1761081660003,0.905,3937.2,3933.7,3.2078]
[1761081660196,1.76866686,3936.7,3935.5,0.45722]
[1761081660396,1.76866686,3937.2,3936.5,0.4571]
[1761081660595,1.76866686,3937.6,3936.9,3.2078]
[1761081660904,0.00319169,3937.6,3936.9,0.00222669]
[1761081661102,2.209,3938.3,3937.5,3.2078]
[1761081661500,2.209,3938.3,3937.6,6.613]
[1761081661801,4.1128,3938.4,3936.9,0.00222669]
[1761081662001,4.11463379,3938.4,3937.6,3.2078]
[1761081662203,4.11463379,3938.4,3937.7,10.271]
[1761081662502,2.209,3938.3,3938.0,3.2078]
[1761081662802,2.209,3938.3,3938.1,10.269]
[1761081663202,0.90683379,3938.4,3936.9,3.21002669]
[1761081663203,2.209,3938.2,3936.9,3.21002669]
[1761081663403,2.209,3938.2,3937.0,10.264]
[1761081663600,2.209,3937.9,3937.1,10.266]
[1761081663911,2.209,3937.9,3937.4,3.2078]
[1761081664204,2.209,3937.5,3936.9,0.00222669]
[1761081664407,2.209,3937.5,3937.2,3.2078]
[1761081664606,2.209,3937.9,3937.2,3.2078]
[1761081665108,2.209,3937.9,3937.7,3.2078]
[1761081665297,3.0613067,3937.8,3937.7,3.2078]
[1761081665501,3.0613067,3937.8,3937.7,13.4688]
[1761081666506,0.8523067,3937.8,3937.3,2.7508]
[1761081666707,2.209,3937.0,3935.7,1.6873]
[1761081666899,0.8523067,3936.9,3936.2,1.6873]
[1761081667098,3.2078,3937.6,3936.7,3.2078]
[1761081667099,0.8523067,3936.8,3936.7,3.2078]
[1761081667303,0.8523067,3936.8,3936.7,10.418]
[1761081667504,0.8523067,3936.8,3936.7,17.1053]
[1761081667711,0.8523067,3936.8,3936.7,17.10797839]
[1761081667907,0.8523067,3936.8,3936.7,17.12397839]
[1761081668104,0.8523067,3936.8,3936.7,12.12397839]
[1761081668304,0.8523067,3936.8,3936.7,17.12397839]
[1761081668607,0.8523067,3936.8,3936.7,1.68997839]
[1761081668802,0.8523067,3936.8,3936.7,6.68997839]
[1761081669002,0.8523067,3936.8,3936.7,17.11897839]
[1761081669309,0.8523067,3936.8,3934.3,0.25417482]
[1761081669310,3.2078,3936.3,3933.4,1.69]
[1761081669606,3.2078,3934.8,3933.5,0.45744]
[1761081669810,0.8523067,3934.7,3933.7,1.69]
[1761081670008,3.2078,3934.4,3933.7,1.69]
[1761081670309,0.45729,3934.9,3932.8,0.48242718]
[1761081670310,2.209,3933.8,3932.8,0.02542718]
[1761081670503,2.209,3932.9,3932.5,1.976]
[1761081670705,2.209,3932.9,3931.6,1.69]
[1761081670706,2.209,3932.5,3931.7,5.688]
[1761081671007,2.209,3932.5,3930.5,3.2078]
[1761081671008,2.209,3928.4,3927.3,1.69]
[1761081671200,0.905,3929.4,3927.5,1.69]
[1761081671201,3.2078,3928.8,3927.5,1.69]
[1761081671405,2.209,3929.1,3927.5,1.69]
[1761081671601,2.209,3929.1,3927.2,3.2078]
[1761081671602,2.209,3927.5,3926.9,3.43123271]
[1761081671802,2.209,3927.3,3926.1,2.2274]
[1761081672004,5.4168,3928.0,3926.5,0.45826]
[1761081672202,5.4168,3928.0,3926.5,2.2274]
[1761081672503,0.00327024,3929.1,3928.0,2.2274]
[1761081672710,0.00327024,3929.1,3928.6,2.2274]
[1761081673208,3.2078,3929.3,3928.7,3.27710771]
[1761081673401,3.2078,3930.2,3928.8,2.2274]
[1761081673601,5.252,3931.6,3928.6,0.9069]
[1761081673602,3.2078,3930.3,3929.0,2.2274]
[1761081673803,2.209,3929.7,3928.9,3.38287662]
[1761081674002,5.4168,3929.0,3928.0,0.00318567]
[1761081674200,2.209,3928.4,3928.0,0.00318567]
[1761081674713,5.4168,3928.1,3928.0,0.00318567]
[1761081675208,2.6671,3928.0,3926.0,2.2274]
[1761081675402,41.705,3928.6,3926.0,2.2274]
[1761081675403,3.2078,3926.9,3926.0,2.2274]
[1761081675609,3.2078,3926.9,3926.0,9.1984]
[1761081675809,3.2078,3926.9,3925.8,3.2078]
[1761081675810,2.209,3927.2,3926.1,2.2274]
[1761081676006,3.2078,3927.4,3926.3,2.2274]
[1761081676202,3.2078,3927.0,3926.3,0.00245297]
[1761081676707,3.2078,3927.0,3926.3,2.22985297]
[1761081677110,2.06203298,3927.0,3926.3,2.22985297]
[1761081677407,4.27103298,3927.0,3926.3,0.00245297]
[1761081678005,2.209,3926.4,3926.3,0.00245297]
[1761081678708,7.209,3926.4,3926.3,0.00245297]
[1761081679004,2.209,3926.4,3926.3,0.00245297]
[1761081679210,2.209,3926.4,3924.0,0.9069]
[1761081679211,3.1929,3926.1,3924.4,3.3294]
[1761081679404,3.2078,3925.6,3924.7,3.3294]
[1761081680209,6.4025533,3925.6,3924.7,3.3319732]
[1761081680919,3.1735,3925.1,3924.7,0.0025732]
[1761081681211,6.3813,3924.8,3924.7,0.0025732]
[1761081681410,3.1735,3925.2,3924.7,0.0025732]
[1761081681614,3.2096533,3925.6,3924.8,3.4599]
[1761081682113,3.2096533,3925.6,3925.0,3.4599]
[1761081682313,3.2096533,3925.6,3924.9,3.2078]
[1761081682502,6.3831533,3925.6,3924.7,0.0025732]
[1761081682709,3.1735,3925.5,3924.7,0.0025732]
[1761081683212,6.3813,3925.5,3924.7,0.0025732]
[1761081683413,0.0018533,3925.6,3924.7,3.4624732]
[1761081683711,0.0018533,3925.6,3925.2,3.4599]
[1761081684608,0.0018533,3925.6,3925.5,6.6677]
[1761081684810,0.0018533,3925.6,3925.5,17.5797]
[1761081685225,0.0018533,3925.6,3925.5,23.03808]
[1761081685714,0.0018533,3925.6,3925.5,22.5797]
[1761081686113,3.2078,3926.7,3925.8,0.45835]
[1761081686317,3.2078,3926.7,3926.0,3.4599]
[1761081686823,1.5569,3927.1,3926.7,3.4599]
[1761081687006,1.04348129,3927.1,3927.0,1.3421]
[1761081687310,3.1735,3928.4,3927.2,0.45818]
[1761081687508,6.39936,3929.0,3927.9,3.4599]
[1761081687719,0.0024424,3928.4,3928.1,3.4599]
[1761081688215,0.01806,3929.0,3928.5,3.4599]
[1761081688409,0.01806,3929.0,3928.9,6.6677]
[1761081688710,3.2078,3930.4,3928.9,14.0868]
[1761081688914,3.2078,3930.4,3929.5,3.4599]
[1761081689105,0.00282762,3930.4,3929.9,3.4599]
[1761081689512,3.2078,3931.3,3930.1,3.4599]
[1761081689712,3.2078,3934.0,3932.5,1.3421]
[1761081689916,3.1735,3933.4,3932.5,3.2078]
[1761081690106,3.1735,3933.4,3931.9,0.37852514]
[1761081690107,0.45754,3932.8,3931.9,0.37852514]
[1761081690312,3.1735,3932.5,3931.9,0.37852514]
[1761081690506,3.1735,3932.5,3931.9,0.38181493]
[1761081690813,3.17671246,3932.5,3931.9,0.38181493]
[1761081691206,3.17671246,3932.5,3931.4,8.381]
[1761081691207,3.1735,3932.1,3931.4,3.2078]
[1761081691412,3.63111,3932.1,3931.4,3.2078]
[1761081691619,0.45776,3930.9,3930.1,3.2078]
[1761081691910,0.45776,3930.9,3927.7,0.0880599]
[1761081691911,0.45778,3930.7,3929.4,3.84478646]
[1761081692313,2.44928,3930.8,3929.4,3.84766495]
[1761081692515,0.45779,3930.6,3929.4,3.84766495]
[1761081692712,1.9915,3930.8,3929.7,3.2078]
[1761081692918,0.45778,3930.7,3929.7,6.6677]
[1761081693106,0.4578,3930.5,3929.7,3.4599]
[1761081693309,1.14399,3932.3,3929.4,0.38776495]
[1761081693310,1.9915,3930.3,3929.4,0.38776495]
[1761081693509,1.6037,3929.4,3928.1,3.2078]
[1761081693713,3.2078,3928.9,3927.8,3.4599]
[1761081694210,1.6037,3929.3,3927.8,3.4599]
[1761081694406,0.45795,3929.2,3927.8,3.4599]
[1761081694709,0.00224235,3929.3,3928.5,3.2078]
[1761081695510,0.00224235,3929.3,3928.5,6.6677]
[1761081695714,0.00224235,3929.3,3928.5,3.4599]
[1761081696226,0.45802,3928.7,3927.8,0.00326478]
[1761081696520,0.45807,3928.3,3927.8,0.00326478]
[1761081696708,0.7007603,3928.2,3927.9,3.4599]
[1761081696910,1.6037,3928.7,3927.8,0.00326478]
[1761081697115,1.6037,3928.3,3927.8,0.00326478]
[1761081697420,2.06182,3927.8,3927.6,3.59484482]
[1761081697723,0.70268023,3927.7,3927.6,3.59484482]
[1761081698514,0.70268023,3927.7,3927.6,3.59754255]
[1761081699215,0.70268023,3927.7,3927.6,7.05744255]
[1761081699611,1.57387342,3927.7,3927.6,7.05744255]
[1761081699813,0.70268023,3927.7,3927.6,3.84964255]
[1761081700212,0.70268023,3927.7,3927.6,0.38974255]
[1761081700415,0.70268023,3927.7,3927.6,3.84964255]
[1761081700609,0.70268023,3927.7,3927.6,0.38974255]
[1761081700913,1.6037,3927.6,3926.2,3.2078]
[1761081701117,3.2078,3926.7,3925.5,3.4599]
[1761081701320,3.2078,3925.6,3923.8,0.08869085]
[1761081701512,0.45864,3923.4,3920.1,0.45901]
[1761081701710,0.89218133,3922.8,3919.7,3.2078]
[1761081701915,1.7985812,3921.6,3919.7,3.21061936]
[1761081702126,0.89218133,3920.6,3918.1,3.2078]
[1761081702314,3.1578,3918.4,3917.0,0.25529742]
[1761081702508,3.2078,3917.9,3917.0,0.25529742]
[1761081702712,3.2078,3917.9,3916.4,3.873]
[1761081702713,3.91164097,3917.9,3916.8,3.4599]
[1761081702914,8.91164097,3917.9,3915.2,0.08717657]
[1761081703119,3.2078,3916.3,3915.2,3.4599]
[1761081703317,21.9587412,3918.1,3915.2,3.4599]
[1761081703318,0.00207627,3917.9,3917.3,3.4599]
[1761081703519,3.1735,3917.7,3916.6,3.2078]
[1761081703722,3.1735,3917.6,3915.9,9.85043252]
[1761081703917,3.1735,3917.3,3916.7,3.31847975]
[1761081704120,3.2078,3917.3,3916.7,0.11067975]
[1761081704315,3.2078,3917.3,3915.4,6.52627975]
[1761081704316,3.2078,3916.3,3914.6,2.76144995]
[1761081704515,3.2078,3914.7,3913.1,0.67452934]
[1761081704814,2.7838,3914.6,3913.1,0.67452934]
[1761081705122,3.2078,3913.8,3912.2,3.2078]
[1761081705423,40.8,3914.0,3911.8,3.2078]
[1761081705424,3.2078,3913.4,3911.8,3.2078]
[1761081705623,3.2078,3911.9,3911.8,0.00200779]
[1761081705820,0.46008,3911.1,3907.8,0.02558985]
[1761081706018,3.66809,3909.3,3906.8,3.2078]
[1761081706218,1.1501,3911.4,3905.9,3.2078]
[1761081706219,3.2078,3907.7,3905.9,3.2078]
[1761081706418,40.8,3908.9,3905.5,3.2078]
[1761081706419,3.2078,3907.9,3905.5,3.2078]
[1761081706616,3.2078,3907.4,3905.5,3.2078]
[1761081706817,3.2078,3907.0,3905.5,0.00278701]
[1761081707022,3.2078,3905.8,3905.5,0.00278701]
[1761081707322,3.2078,3905.8,3900.9,3.2078]
[1761081707323,0.46078,3905.2,3900.9,3.2078]
[1761081707618,110.726,3906.9,3898.1,1.34879935]
[1761081707619,3.2078,3902.9,3899.9,3.4599]
[1761081707822,3.2078,3903.5,3901.9,3.4599]
[1761081708023,3.2078,3903.5,3899.8,1.3421]
[1761081708024,1.3405,3901.9,3898.1,17.27991785]
[1761081708225,0.00225575,3901.9,3900.7,1.3421]
[1761081708426,3.2078,3904.9,3900.7,1.62825413]
[1761081708616,9.21e-06,3905.6,3903.9,3.2078]
[1761081708822,3.1735,3909.4,3906.5,3.2078]
[1761081709117,3.015,3909.3,3906.6,3.390008]
[1761081709321,3.2078,3907.6,3906.6,1.79709264]
[1761081709514,3.2078,3907.6,3903.9,0.28581603]
[1761081709515,3.2078,3906.5,3902.6,1.3421]
[1761081709716,3.2078,3905.3,3902.6,1.3421]
[1761081710027,3.2078,3904.1,3902.6,0.08793863]
[1761081710319,3.2078,3904.5,3902.7,3.85043491]
[1761081710522,0.00250002,3904.5,3903.4,3.2078]
[1761081710823,0.00250002,3904.5,3903.5,3.4558]
[1761081711138,3.2078,3903.6,3900.9,3.2078]
[1761081711326,3.2078,3902.3,3900.9,3.2078]
[1761081711622,3.2078,3902.3,3900.7,1.63135413]
[1761081711623,3.2078,3901.7,3899.7,3.2078]
[1761081711813,3.2078,3900.3,3898.8,1.73419444]
[1761081712017,3.2078,3901.0,3898.6,3.2078]
[1761081712217,3.2078,3900.6,3898.6,3.2098482]
[1761081712422,0.0028372,3901.0,3897.9,5.102]
[1761081712622,3.2078,3898.5,3897.3,3.2078]
[1761081712832,3.2078,3900.1,3897.1,0.46172]
[1761081713126,3.5196,3899.8,3897.4,3.31612025]
[1761081713422,0.0028372,3901.0,3897.4,3.31612025]
[1761081713423,3.5196,3899.7,3898.2,3.2078]
[1761081713617,0.0028372,3901.0,3897.4,0.0024193]
[1761081713618,3.2078,3898.6,3897.4,0.0024193]
[1761081713819,3.2078,3898.9,3897.9,0.46163]
[1761081714014,3.2078,3900.4,3898.3,6.96711005]
[1761081714214,0.0028372,3901.0,3898.7,3.2078]
[1761081714419,3.5196,3901.9,3899.8,0.38593597]
[1761081714620,3.5196,3901.8,3899.9,3.4558]
[1761081714824,3.2078,3901.7,3900.1,3.4558]
[1761081715022,3.2078,3901.7,3899.6,17.26323]
[1761081715023,1.4606,3900.1,3897.4,3.2102193]
[1761081715233,3.2078,3898.4,3897.5,3.4558]
[1761081715435,3.2078,3898.4,3897.4,0.0024193]
[1761081715625,3.2078,3897.5,3897.4,0.0024193]
[1761081715936,4.6684,3897.5,3897.4,0.0024193]
[1761081716223,3.2078,3897.5,3897.4,0.0024193]
[1761081716618,0.00269677,3898.4,3897.5,3.4558]
[1761081716819,3.2078,3898.2,3897.4,0.0024193]
[1761081717026,3.2078,3897.7,3897.4,0.0024193]
[1761081717530,3.2078,3897.7,3895.6,11.8118]
[1761081717531,5.0,3897.6,3895.1,3.2078]
[1761081717736,3.2078,3896.9,3895.1,3.4558]
[1761081717926,3.2078,3896.0,3895.1,3.84015303]
[1761081718237,3.2078,3896.8,3895.3,3.4558]
[1761081718428,3.04470596,3896.8,3896.0,1.3452]
[1761081718621,3.04470596,3896.8,3896.1,3.4558]
[1761081718927,0.00269677,3898.4,3896.9,3.4558]
[1761081719120,3.2078,3899.0,3897.9,3.4558]
[1761081719320,3.2078,3900.0,3898.3,3.2078]
[1761081719523,3.2078,3900.7,3898.6,3.4558]
[1761081719727,1.4582,3901.7,3900.2,3.2078]
[1761081719728,3.2078,3901.2,3900.2,3.2078]
[1761081719931,3.2078,3903.3,3901.2,3.4558]
[1761081720133,0.00304735,3903.3,3902.5,3.2078]
[1761081720338,0.0904176,3904.9,3901.7,3.90033]
[1761081720529,3.2078,3904.7,3902.6,3.27040414]
[1761081720829,0.89218133,3906.1,3902.6,3.27040414]
[1761081720830,3.2078,3905.5,3904.5,1.3452]
[1761081721030,3.2078,3904.6,3902.7,20.737]
[1761081721237,3.2078,3903.5,3902.8,13.849]
[1761081721434,3.2078,3902.9,3902.8,0.00268064]
[1761081721635,0.0030307,3903.5,3902.8,0.00268064]
[1761081721936,3.2078,3905.1,3903.4,0.46097]
[1761081722127,1.78687216,3908.1,3903.4,0.46097]
[1761081722128,3.2078,3906.5,3903.5,34.601]
[1761081722324,1.78687216,3906.7,3905.1,3.4558]
[1761081722637,2.18650684,3908.1,3906.7,3.4558]
[1761081722938,3.5196,3907.1,3906.7,0.00248556]
[1761081723123,0.2562,3906.8,3906.0,2.01763149]
[1761081723429,3.5196,3906.2,3906.0,2.01763149]
[1761081723641,3.5196,3906.1,3906.0,2.01763149]
[1761081723826,3.5196,3906.1,3905.1,0.38164535]
[1761081724028,3.47165941,3908.1,3905.1,0.38164535]
[1761081724029,0.2562,3905.9,3905.1,0.38361521]
[1761081724222,0.2562,3906.1,3905.1,0.38361521]
[1761081724427,3.464,3906.2,3905.1,0.38361521]
[1761081724632,3.2078,3906.2,3905.1,0.38361521]
[1761081724826,3.2078,3907.3,3905.9,0.46067]
[1761081725026,0.00205257,3908.1,3906.1,3.84266995]
[1761081725227,3.5196,3907.9,3906.9,3.2078]
[1761081725428,0.00205257,3908.1,3906.5,3.2078]
[1761081725736,0.27354335,3908.0,3906.9,3.2078]
[1761081725933,0.2562,3907.6,3906.1,0.38686995]
[1761081726233,0.27354335,3907.5,3906.4,3.2078]
[1761081726422,0.27354335,3907.4,3907.2,3.2078]
[1761081726628,0.2562,3908.0,3907.2,3.2078]
[1761081726828,0.27367869,3907.9,3907.2,3.2078]
[1761081727027,0.27367869,3907.8,3907.6,3.2078]
[1761081727325,5.27424212,3907.7,3906.8,3.2078]
[1761081727530,0.2562,3907.2,3906.8,3.2078]
[1761081727726,0.2562,3906.9,3906.3,3.4558]
[1761081727932,0.00205257,3908.1,3907.1,3.4558]
[1761081728125,0.00205257,3908.1,3906.9,3.26878754]
[1761081728126,0.00205257,3908.1,3908.0,6.6636]
[1761081728328,0.00205257,3908.1,3908.0,6.66670182]
[1761081728533,0.00205257,3908.1,3908.0,14.93548936]
[1761081728735,0.00205257,3908.1,3908.0,6.47968936]
[1761081729036,6.7274,3910.3,3908.1,3.4558]
[1761081729333,6.7274,3910.3,3909.6,3.2078]
[1761081729334,0.2562,3910.0,3909.6,3.2078]
[1761081729533,3.2078,3911.9,3909.7,3.4558]
[1761081729735,3.5196,3911.8,3911.0,3.2078]
[1761081729925,0.2562,3911.2,3911.0,3.20965681]
[1761081730236,0.2562,3911.5,3911.0,2.20965681]
[1761081730442,0.2562,3911.1,3911.0,0.00185681]
[1761081730636,0.2562,3911.1,3909.1,3.2078]
[1761081730637,3.5196,3910.4,3909.1,3.2078]
[1761081730940,1.04939256,3911.8,3908.0,3.4558]
[1761081730941,0.2562,3909.8,3909.6,3.2078]
[1761081731140,0.2562,3909.8,3909.0,3.2078]
[1761081731336,6.7274,3910.2,3909.0,3.2078]
[1761081731541,3.2078,3909.8,3909.0,3.20977746]
[1761081731839,3.5196,3909.0,3908.1,3.2078]
[1761081732339,3.5196,3909.9,3908.6,3.2078]
[1761081732537,3.5196,3909.9,3908.2,3.4558]
[1761081732538,3.5196,3909.9,3909.0,3.2078]
[1761081732838,0.79562523,3909.8,3909.5,3.2078]
[1761081733137,0.79562523,3909.7,3909.5,3.2078]
[1761081733330,0.79794125,3909.6,3909.5,3.2078]
[1761081733535,0.79794125,3909.6,3909.5,6.6636]
[1761081733738,0.79794125,3909.6,3909.5,3.2078]
[1761081734132,0.00257053,3909.9,3909.5,15.39981148]
[1761081734334,0.00257053,3909.9,3909.7,3.4558]
[1761081734727,0.00257053,3909.9,3909.5,3.59860779]
[1761081735128,0.00257053,3909.9,3909.6,3.4558]
[1761081735336,0.00257053,3909.9,3909.7,0.46024]
[1761081735541,3.2078,3911.6,3909.8,3.4558]
[1761081735740,3.5196,3911.7,3911.5,3.2078]
[1761081736036,1.047,3911.8,3911.6,5.0]
[1761081736238,1.047,3911.8,3911.5,3.2078]
[1761081736439,1.04946567,3911.8,3911.5,8.2078]
[1761081736640,3.5196,3911.7,3910.9,3.2078]
[1761081736839,0.2562,3911.6,3910.9,3.2078]
[1761081737139,0.2562,3911.6,3909.8,13.601]
[1761081737140,1.04946567,3911.8,3911.3,3.2078]
[1761081737342,1.04946567,3911.8,3911.4,3.4558]
[1761081737551,1.04946567,3911.8,3911.7,3.2078]
[1761081737742,1.04946567,3911.8,3911.1,3.2078]
[1761081737933,1.04946567,3911.8,3911.5,3.2078]
[1761081738646,1.04946567,3911.8,3911.6,3.4558]
[1761081738842,1.04946567,3911.8,3911.5,3.2078]
[1761081739046,1.04946567,3911.8,3911.5,6.7238]
[1761081739236,1.04946567,3911.8,3911.6,3.516]
[1761081739437,1.03114883,3911.8,3911.6,3.516]
[1761081739639,1.73034473,3913.5,3912.5,0.4599]
[1761081739935,4.91814473,3914.7,3913.4,3.2078]
[1761081740235,3.1878,3914.6,3914.0,3.2078]
[1761081740640,3.1878,3914.6,3914.0,3.21043918]
[1761081740641,0.00314116,3914.6,3914.0,3.21043918]
[1761081740835,0.00314116,3914.6,3914.4,3.2078]
[1761081741036,0.00314116,3914.6,3914.5,8.2466]
[1761081741338,0.00314116,3914.6,3914.5,0.37741317]
[1761081741935,3.2078,3916.9,3914.9,0.45961]
[1761081742233,0.2562,3917.1,3916.8,3.2078]
[1761081742433,1.2831,3917.8,3916.8,3.2078]